[Event "*** SCC Grand Prix: Titled Tuesday Blitz"]
[Site "Chess.com"]
[Date "2020.06.09"]
[Round "4"]
[White "Harsha_Bharathakoti"]
[Black "MartinCerveny"]
[Result "0-1"]
[WhiteElo "2742"]
[BlackElo "2511"]
[TimeControl "180+1"]
[EndTime "9:39:21 PDT"]
[Termination "MartinCerveny won by resignation"]

1. d4 {[%clk 0:03:00.9]} 1... d5 {[%clk 0:02:59.9]} 2. c4 {[%clk 0:02:49.3]}
2... c6 {[%clk 0:02:59.9]} 3. Nc3 {[%clk 0:02:49.5]} 3... Nf6 {[%clk 0:02:59.5]}
4. Nf3 {[%clk 0:02:50.1]} 4... a6 {[%clk 0:02:59.9]} 5. Qc2 {[%clk 0:02:49.9]}
5... g6 {[%clk 0:02:58.4]} 6. e4 {[%clk 0:02:50.4]} 6... dxe4 {[%clk 0:02:56.2]}
7. Nxe4 {[%clk 0:02:51.3]} 7... Bg7 {[%clk 0:02:55.1]} 8. Nxf6+ {[%clk
0:02:44.2]} 8... Bxf6 {[%clk 0:02:54]} 9. Be3 {[%clk 0:02:41.6]} 9... O-O {[%clk
0:02:53]} 10. Be2 {[%clk 0:02:40.1]} 10... Bf5 {[%clk 0:02:48.8]} 11. Qc3 {[%clk
0:02:34.5]} 11... b5 {[%clk 0:02:46.8]} 12. b3 {[%clk 0:02:32.6]} 12... c5
{[%clk 0:02:41.2]} 13. O-O {[%clk 0:02:32.5]} 13... Nc6 {[%clk 0:02:38.6]} 14.
Rad1 {[%clk 0:02:33.2]} 14... bxc4 {[%clk 0:02:23.8]} 15. Bxc4 {[%clk
0:02:32.5]} 15... cxd4 {[%clk 0:02:23.6]} 16. Nxd4 {[%clk 0:02:32.6]} 16... Nxd4
{[%clk 0:01:58.2]} 17. Bxd4 {[%clk 0:02:33.5]} 17... Bxd4 {[%clk 0:01:58]} 18.
Rxd4 {[%clk 0:02:34.4]} 18... Qb6 {[%clk 0:01:56.2]} 19. Rfd1 {[%clk 0:02:13.7]}
19... a5 {[%clk 0:01:55.6]} 20. Qe3 {[%clk 0:02:12.5]} 20... Qf6 {[%clk
0:01:46]} 21. h3 {[%clk 0:01:18.9]} 21... g5 {[%clk 0:01:27.6]} 22. f4 {[%clk
0:01:09.7]} 22... h6 {[%clk 0:01:25.5]} 23. fxg5 {[%clk 0:01:09.1]} 23... Qxg5
{[%clk 0:01:25.2]} 24. Qf2 {[%clk 0:00:36.9]} 24... e6 {[%clk 0:01:12.7]} 25.
Bd3 {[%clk 0:00:28.6]} 25... Bxd3 {[%clk 0:00:59.3]} 26. R1xd3 {[%clk
0:00:28.4]} 26... Qe5 {[%clk 0:00:48.3]} 27. Rf3 {[%clk 0:00:22.2]} 27... Rad8
{[%clk 0:00:44.2]} 28. Rg4+ {[%clk 0:00:17.9]} 28... Kh8 {[%clk 0:00:44.1]} 29.
Rgg3 {[%clk 0:00:15.6]} 29... f5 {[%clk 0:00:42.3]} 30. Re3 {[%clk 0:00:13.6]}
30... Rd1+ {[%clk 0:00:40.8]} 31. Kh2 {[%clk 0:00:13.9]} 31... Qa1 {[%clk
0:00:40.5]} 32. Rg6 {[%clk 0:00:11.2]} 32... Rh1+ {[%clk 0:00:39.1]} 33. Kg3
{[%clk 0:00:12]} 33... f4+ {[%clk 0:00:39.4]} 34. Kg4 {[%clk 0:00:11.1]} 34...
Qd4 {[%clk 0:00:29.9]} 35. Rxh6+ {[%clk 0:00:07.6]} 35... Kg7 {[%clk 0:00:29.1]}
36. Kh5 {[%clk 0:00:03.7]} 36... Rf5+ {[%clk 0:00:27.5]} 0-1

[Event "*** SCC Grand Prix: Titled Tuesday Blitz"]
[Site "Chess.com"]
[Date "2020.06.09"]
[Round "4"]
[White "PauloFanha"]
[Black "Pavel_Mir"]
[Result "0-1"]
[WhiteElo "2000"]
[BlackElo "2305"]
[TimeControl "180+1"]
[EndTime "9:39:21 PDT"]
[Termination "Pavel_Mir won by checkmate"]

1. e4 {[%clk 0:03:00.9]} 1... e5 {[%clk 0:02:59.6]} 2. Bc4 {[%clk 0:02:59.4]}
2... Nf6 {[%clk 0:02:58.3]} 3. d4 {[%clk 0:02:59]} 3... exd4 {[%clk 0:02:57.4]}
4. Nf3 {[%clk 0:02:58.7]} 4... Nc6 {[%clk 0:02:57.6]} 5. O-O {[%clk 0:02:58.1]}
5... Nxe4 {[%clk 0:02:56.4]} 6. Re1 {[%clk 0:02:56.9]} 6... d5 {[%clk 0:02:57]}
7. Bxd5 {[%clk 0:02:56.8]} 7... Qxd5 {[%clk 0:02:57.5]} 8. Nc3 {[%clk
0:02:56.8]} 8... Qa5 {[%clk 0:02:57.6]} 9. Nxe4 {[%clk 0:02:56.5]} 9... Be6
{[%clk 0:02:57.7]} 10. Bg5 {[%clk 0:02:53.5]} 10... h6 {[%clk 0:02:48.7]} 11.
Bh4 {[%clk 0:02:46.8]} 11... Qd5 {[%clk 0:02:37.4]} 12. c4 {[%clk 0:02:33]}
12... Qh5 {[%clk 0:02:20.7]} 13. Bf6 {[%clk 0:02:25.9]} 13... Be7 {[%clk
0:02:08.9]} 14. Bxe7 {[%clk 0:02:17.9]} 14... Nxe7 {[%clk 0:02:05.7]} 15. Nxd4
{[%clk 0:02:16.9]} 15... Qxd1 {[%clk 0:02:03.2]} 16. Raxd1 {[%clk 0:02:14.1]}
16... O-O-O {[%clk 0:02:03.3]} 17. Nxe6 {[%clk 0:02:12.3]} 17... fxe6 {[%clk
0:02:03.6]} 18. Nc5 {[%clk 0:02:09.6]} 18... e5 {[%clk 0:01:42.1]} 19. Kf1
{[%clk 0:01:55.3]} 19... Nc6 {[%clk 0:01:41.2]} 20. a3 {[%clk 0:01:44.8]} 20...
a5 {[%clk 0:01:35.6]} 21. b3 {[%clk 0:01:40.7]} 21... Rd6 {[%clk 0:01:28.5]} 22.
Ne4 {[%clk 0:01:31.3]} 22... Rd4 {[%clk 0:01:19.7]} 23. Ng3 {[%clk 0:01:16]}
23... Rhd8 {[%clk 0:01:16.7]} 24. Rxd4 {[%clk 0:01:12]} 24... exd4 {[%clk
0:01:16.9]} 25. Nf5 {[%clk 0:01:09.6]} 25... d3 {[%clk 0:01:11.4]} 26. Nxg7
{[%clk 0:00:58.8]} 26... Nd4 {[%clk 0:01:10]} 27. b4 {[%clk 0:00:50.8]} 27...
axb4 {[%clk 0:01:07.8]} 28. axb4 {[%clk 0:00:50.5]} 28... Nc2 {[%clk 0:01:06.4]}
29. Rd1 {[%clk 0:00:49.7]} 29... Nxb4 {[%clk 0:01:05.9]} 30. Ne6 {[%clk
0:00:47]} 30... Re8 {[%clk 0:00:57.9]} 31. Nc5 {[%clk 0:00:45.4]} 31... Rd8
{[%clk 0:00:52.4]} 32. Ne6 {[%clk 0:00:45]} 32... Rd6 {[%clk 0:00:51.5]} 33. Nf4
{[%clk 0:00:41.9]} 33... c5 {[%clk 0:00:43.6]} 34. Ke1 {[%clk 0:00:36.9]} 34...
b5 {[%clk 0:00:43]} 35. cxb5 {[%clk 0:00:34.8]} 35... c4 {[%clk 0:00:43.4]} 36.
Kd2 {[%clk 0:00:32.8]} 36... Na2 {[%clk 0:00:36.8]} 37. Ra1 {[%clk 0:00:25.8]}
37... c3+ {[%clk 0:00:36.3]} 38. Ke1 {[%clk 0:00:18.9]} 38... d2+ {[%clk
0:00:34.3]} 39. Kd1 {[%clk 0:00:17.5]} 39... Nb4 {[%clk 0:00:34.4]} 40. Ne2
{[%clk 0:00:03]} 40... c2# {[%clk 0:00:33.7]} 0-1

[Event "*** SCC Grand Prix: Titled Tuesday Blitz"]
[Site "Chess.com"]
[Date "2020.06.09"]
[Round "4"]
[White "Bigfish1995"]
[Black "kuban1991"]
[Result "1-0"]
[WhiteElo "2989"]
[BlackElo "2779"]
[TimeControl "180+1"]
[EndTime "9:39:22 PDT"]
[Termination "Bigfish1995 won by checkmate"]

1. e4 {[%clk 0:03:00.9]} 1... e6 {[%clk 0:02:58.5]} 2. d4 {[%clk 0:03:00.5]}
2... d5 {[%clk 0:02:58.8]} 3. Nc3 {[%clk 0:03:00.6]} 3... Bb4 {[%clk 0:02:58.2]}
4. e5 {[%clk 0:02:59.3]} 4... c5 {[%clk 0:02:57.9]} 5. a3 {[%clk 0:02:59.8]}
5... Bxc3+ {[%clk 0:02:58.2]} 6. bxc3 {[%clk 0:03:00.7]} 6... Nc6 {[%clk
0:02:59]} 7. Nf3 {[%clk 0:02:51.1]} 7... Bd7 {[%clk 0:02:57.1]} 8. Bd3 {[%clk
0:02:49.8]} 8... Qa5 {[%clk 0:02:57.1]} 9. Bd2 {[%clk 0:02:47.2]} 9... c4 {[%clk
0:02:57.4]} 10. Be2 {[%clk 0:02:46.5]} 10... O-O-O {[%clk 0:02:58]} 11. Ng5
{[%clk 0:02:45.8]} 11... Rf8 {[%clk 0:02:52.3]} 12. Bh5 {[%clk 0:02:45.7]} 12...
g6 {[%clk 0:02:39]} 13. Be2 {[%clk 0:02:43.9]} 13... h6 {[%clk 0:02:37.4]} 14.
Nh3 {[%clk 0:02:41.1]} 14... f6 {[%clk 0:02:29.9]} 15. Nf4 {[%clk 0:02:34.5]}
15... Nge7 {[%clk 0:02:24.9]} 16. exf6 {[%clk 0:02:34.2]} 16... Rxf6 {[%clk
0:02:25.8]} 17. O-O {[%clk 0:02:31.4]} 17... Rxf4 {[%clk 0:01:31.6]} 18. Bxf4
{[%clk 0:02:31.1]} 18... Qxc3 {[%clk 0:01:32.3]} 19. Bg4 {[%clk 0:02:31.8]}
19... h5 {[%clk 0:01:14.6]} 20. Bh3 {[%clk 0:02:29.5]} 20... Rf8 {[%clk
0:01:14.1]} 21. Bd6 {[%clk 0:02:01.6]} 21... Rf7 {[%clk 0:01:12.1]} 22. Re1
{[%clk 0:01:55.8]} 22... Qxd4 {[%clk 0:01:02]} 23. Qxd4 {[%clk 0:01:32.8]} 23...
Nxd4 {[%clk 0:01:01.5]} 24. Rad1 {[%clk 0:01:33.5]} 24... Nef5 {[%clk
0:00:40.7]} 25. Bxf5 {[%clk 0:01:20.1]} 25... Nxf5 {[%clk 0:00:41.6]} 26. Be5
{[%clk 0:01:19.5]} 26... Ba4 {[%clk 0:00:39.3]} 27. Rd2 {[%clk 0:01:16]} 27...
Kd7 {[%clk 0:00:38.7]} 28. Rde2 {[%clk 0:01:06.6]} 28... b5 {[%clk 0:00:35.9]}
29. c3 {[%clk 0:01:02.7]} 29... a5 {[%clk 0:00:34.2]} 30. f3 {[%clk 0:01:02.7]}
30... Bb3 {[%clk 0:00:24.1]} 31. Kf2 {[%clk 0:01:00.9]} 31... b4 {[%clk
0:00:19.7]} 32. axb4 {[%clk 0:01:00.4]} 32... axb4 {[%clk 0:00:20.6]} 33. cxb4
{[%clk 0:01:00.9]} 33... Kc6 {[%clk 0:00:20.3]} 34. Bb2 {[%clk 0:00:49]} 34...
d4 {[%clk 0:00:17.9]} 35. Rxe6+ {[%clk 0:00:48.8]} 35... Kb5 {[%clk 0:00:16.5]}
36. R1e5+ {[%clk 0:00:46.9]} 36... Kxb4 {[%clk 0:00:17]} 37. Rb6+ {[%clk
0:00:46.5]} 37... Ka4 {[%clk 0:00:17.1]} 38. Re1 {[%clk 0:00:42.8]} 38... Ka5
{[%clk 0:00:13.6]} 39. Rb8 {[%clk 0:00:41.3]} 39... Ra7 {[%clk 0:00:10.2]} 40.
Ra1+ {[%clk 0:00:40.1]} 40... Ba4 {[%clk 0:00:10.7]} 41. Ba3 {[%clk 0:00:40.7]}
41... c3 {[%clk 0:00:02.4]} 42. Bb4+ {[%clk 0:00:40.3]} 42... Ka6 {[%clk
0:00:02.4]} 43. Rxa4# {[%clk 0:00:40.6]} 1-0

[Event "*** SCC Grand Prix: Titled Tuesday Blitz"]
[Site "Chess.com"]
[Date "2020.06.09"]
[Round "4"]
[White "Shushik"]
[Black "Kopytkin"]
[Result "0-1"]
[WhiteElo "2164"]
[BlackElo "2336"]
[TimeControl "180+1"]
[EndTime "9:39:22 PDT"]
[Termination "Kopytkin won by resignation"]

1. e4 {[%clk 0:03:00.9]} 1... Nf6 {[%clk 0:02:58.4]} 2. e5 {[%clk 0:03:00.7]}
2... Nd5 {[%clk 0:02:58]} 3. d4 {[%clk 0:03:00.8]} 3... d6 {[%clk 0:02:58.2]} 4.
Nf3 {[%clk 0:02:59.1]} 4... g6 {[%clk 0:02:57.8]} 5. Bc4 {[%clk 0:02:53.6]} 5...
Nb6 {[%clk 0:02:57.3]} 6. Bb3 {[%clk 0:02:53.3]} 6... d5 {[%clk 0:02:57.5]} 7.
O-O {[%clk 0:02:51.4]} 7... Bg7 {[%clk 0:02:57.2]} 8. a4 {[%clk 0:02:48.9]} 8...
Nc6 {[%clk 0:02:57.4]} 9. a5 {[%clk 0:02:46.7]} 9... Nc4 {[%clk 0:02:57.4]} 10.
Bxc4 {[%clk 0:02:25.3]} 10... dxc4 {[%clk 0:02:56.9]} 11. c3 {[%clk 0:02:25.7]}
11... Bf5 {[%clk 0:02:52.8]} 12. Nbd2 {[%clk 0:02:22.7]} 12... Bd3 {[%clk
0:02:51.3]} 13. Re1 {[%clk 0:02:22.4]} 13... Qd5 {[%clk 0:02:40.9]} 14. Qa4
{[%clk 0:02:10.8]} 14... O-O {[%clk 0:02:36.6]} 15. Nf1 {[%clk 0:01:57.8]} 15...
Bxf1 {[%clk 0:02:26.4]} 16. Rxf1 {[%clk 0:01:56.7]} 16... f6 {[%clk 0:02:19.1]}
17. exf6 {[%clk 0:01:47.6]} 17... exf6 {[%clk 0:02:17.8]} 18. Nd2 {[%clk
0:01:46.5]} 18... b5 {[%clk 0:02:06.6]} 19. axb6 {[%clk 0:01:45.6]} 19... axb6
{[%clk 0:02:06.8]} 20. Qxa8 {[%clk 0:01:44.4]} 20... Rxa8 {[%clk 0:02:06.5]} 21.
Rxa8+ {[%clk 0:01:43.9]} 21... Kf7 {[%clk 0:02:07]} 22. Re1 {[%clk 0:01:31.8]}
22... Nxd4 {[%clk 0:01:46.2]} 23. Rae8 {[%clk 0:01:26.3]} 23... Nc6 {[%clk
0:01:24]} 24. R8e4 {[%clk 0:00:44.7]} 24... Bf8 {[%clk 0:01:19.9]} 25. Rxc4
{[%clk 0:00:39.6]} 25... Bh6 {[%clk 0:01:07.6]} 26. Rh4 {[%clk 0:00:26.9]} 26...
Bxd2 {[%clk 0:00:57.4]} 27. Bxd2 {[%clk 0:00:15.4]} 27... Qxd2 {[%clk
0:00:50.9]} 28. Rhe4 {[%clk 0:00:14.8]} 28... g5 {[%clk 0:00:45.5]} 29. Re6
{[%clk 0:00:14]} 29... Ne5 {[%clk 0:00:44.1]} 30. R6xe5 {[%clk 0:00:09.6]} 30...
fxe5 {[%clk 0:00:43.6]} 31. Kf1 {[%clk 0:00:07.5]} 31... Qxb2 {[%clk 0:00:32.6]}
32. Rxe5 {[%clk 0:00:06.9]} 32... Qxc3 {[%clk 0:00:27.7]} 33. Rxg5 {[%clk
0:00:05.7]} 33... Qc1+ {[%clk 0:00:27.6]} 0-1

[Event "*** SCC Grand Prix: Titled Tuesday Blitz"]
[Site "Chess.com"]
[Date "2020.06.09"]
[Round "4"]
[White "Fusikk"]
[Black "emiliocordova"]
[Result "0-1"]
[WhiteElo "2572"]
[BlackElo "2848"]
[TimeControl "180+1"]
[EndTime "9:39:26 PDT"]
[Termination "emiliocordova won on time"]

1. d4 {[%clk 0:03:00.9]} 1... Nf6 {[%clk 0:02:59.3]} 2. c4 {[%clk 0:03:00.6]}
2... e6 {[%clk 0:03:00.2]} 3. Nf3 {[%clk 0:03:00.7]} 3... c5 {[%clk 0:03:00.4]}
4. d5 {[%clk 0:03:00.6]} 4... exd5 {[%clk 0:03:01.3]} 5. cxd5 {[%clk 0:03:01.5]}
5... d6 {[%clk 0:03:01.5]} 6. Nc3 {[%clk 0:03:02]} 6... g6 {[%clk 0:03:02]} 7.
e4 {[%clk 0:03:01.7]} 7... Bg7 {[%clk 0:03:02.1]} 8. h3 {[%clk 0:03:02]} 8...
O-O {[%clk 0:03:02.2]} 9. Bd3 {[%clk 0:03:02.5]} 9... Na6 {[%clk 0:03:00.7]} 10.
O-O {[%clk 0:03:01.4]} 10... Re8 {[%clk 0:03:01.1]} 11. Re1 {[%clk 0:03:00.7]}
11... c4 {[%clk 0:02:59.7]} 12. Bxc4 {[%clk 0:02:57.3]} 12... Nc5 {[%clk
0:03:00.6]} 13. Bb5 {[%clk 0:02:48.2]} 13... Bd7 {[%clk 0:02:59.5]} 14. Bxd7
{[%clk 0:02:40.6]} 14... Qxd7 {[%clk 0:03:00.4]} 15. Nd2 {[%clk 0:02:40.8]}
15... b5 {[%clk 0:02:54.8]} 16. f3 {[%clk 0:02:39.2]} 16... b4 {[%clk 0:02:51]}
17. Ne2 {[%clk 0:02:37.3]} 17... Nd3 {[%clk 0:02:38.6]} 18. Rf1 {[%clk
0:02:36.3]} 18... Nh5 {[%clk 0:02:34.6]} 19. Nb3 {[%clk 0:02:32.1]} 19... Nxc1
{[%clk 0:02:28.9]} 20. Qxc1 {[%clk 0:02:27.8]} 20... f5 {[%clk 0:02:28.4]} 21.
Ned4 {[%clk 0:02:11.2]} 21... fxe4 {[%clk 0:02:27.6]} 22. Ne6 {[%clk 0:02:10.4]}
22... Ng3 {[%clk 0:02:18.4]} 23. Rf2 {[%clk 0:02:02]} 23... Rxe6 {[%clk
0:01:47.6]} 24. dxe6 {[%clk 0:02:02.9]} 24... Qxe6 {[%clk 0:01:48.3]} 25. Qf4
{[%clk 0:01:28.9]} 25... Be5 {[%clk 0:01:43.7]} 26. Qd2 {[%clk 0:01:21.1]} 26...
Rc8 {[%clk 0:01:23.1]} 27. Re1 {[%clk 0:01:18.5]} 27... d5 {[%clk 0:01:18.1]}
28. Qxb4 {[%clk 0:00:59]} 28... Bc7 {[%clk 0:01:03]} 29. Nd4 {[%clk 0:00:54.9]}
29... Qb6 {[%clk 0:00:56.6]} 30. Qe7 {[%clk 0:00:45.9]} 30... Qxd4 {[%clk
0:00:51.4]} 31. Qe6+ {[%clk 0:00:38.7]} 31... Kg7 {[%clk 0:00:51.2]} 32. Qxc8
{[%clk 0:00:38.8]} 32... Bb6 {[%clk 0:00:51.7]} 33. Qc3 {[%clk 0:00:29.9]} 33...
Kh6 {[%clk 0:00:39.3]} 34. Qxd4 {[%clk 0:00:29.6]} 34... Bxd4 {[%clk 0:00:40.2]}
35. Rd1 {[%clk 0:00:27.8]} 35... Bb6 {[%clk 0:00:39.5]} 36. Rb1 {[%clk
0:00:07.1]} 36... e3 {[%clk 0:00:25.4]} 37. Rc2 {[%clk 0:00:06.2]} 37... d4
{[%clk 0:00:26.3]} 38. Rd1 {[%clk 0:00:03.5]} 38... e2 {[%clk 0:00:25.9]} 0-1

[Event "*** SCC Grand Prix: Titled Tuesday Blitz"]
[Site "Chess.com"]
[Date "2020.06.09"]
[Round "4"]
[White "ljuks68"]
[Black "pastouche06"]
[Result "0-1"]
[WhiteElo "2323"]
[BlackElo "2479"]
[TimeControl "180+1"]
[EndTime "9:39:27 PDT"]
[Termination "pastouche06 won by checkmate"]

1. e4 {[%clk 0:03:00.9]} 1... c6 {[%clk 0:02:59.8]} 2. d4 {[%clk 0:03:00.5]}
2... d5 {[%clk 0:02:59.9]} 3. e5 {[%clk 0:03:00.9]} 3... c5 {[%clk 0:02:59.3]}
4. Nf3 {[%clk 0:02:59.8]} 4... cxd4 {[%clk 0:02:46.1]} 5. Nxd4 {[%clk
0:02:58.7]} 5... e6 {[%clk 0:02:46.6]} 6. c4 {[%clk 0:02:57.8]} 6... Nc6 {[%clk
0:02:47.2]} 7. Nc3 {[%clk 0:02:56.5]} 7... Bc5 {[%clk 0:02:46.3]} 8. Nxc6 {[%clk
0:02:56.2]} 8... bxc6 {[%clk 0:02:47.2]} 9. Qg4 {[%clk 0:02:56.2]} 9... Kf8
{[%clk 0:02:34.7]} 10. Bd3 {[%clk 0:02:51.7]} 10... Ne7 {[%clk 0:02:30.9]} 11.
O-O {[%clk 0:02:47.3]} 11... Ng6 {[%clk 0:02:30.5]} 12. Bxg6 {[%clk 0:02:34.6]}
12... hxg6 {[%clk 0:02:31.4]} 13. Bg5 {[%clk 0:02:33.2]} 13... Qc7 {[%clk
0:02:23.5]} 14. Qf4 {[%clk 0:02:11.9]} 14... Rb8 {[%clk 0:01:53.8]} 15. b3
{[%clk 0:02:10.8]} 15... Ba6 {[%clk 0:01:21.5]} 16. Rac1 {[%clk 0:02:05.2]}
16... Ba3 {[%clk 0:01:18.7]} 17. Rcd1 {[%clk 0:02:03.7]} 17... Be7 {[%clk
0:01:15.2]} 18. Bxe7+ {[%clk 0:02:00.1]} 18... Qxe7 {[%clk 0:01:16.1]} 19. g3
{[%clk 0:01:40.8]} 19... Rh5 {[%clk 0:00:58.4]} 20. Rfe1 {[%clk 0:01:39.8]}
20... Qc7 {[%clk 0:00:49.5]} 21. cxd5 {[%clk 0:01:11.1]} 21... cxd5 {[%clk
0:00:50.4]} 22. Rc1 {[%clk 0:01:10.5]} 22... Qa5 {[%clk 0:00:23.7]} 23. Qd4
{[%clk 0:00:58.9]} 23... Rc8 {[%clk 0:00:20.5]} 24. Na4 {[%clk 0:00:42]} 24...
Rc7 {[%clk 0:00:20.3]} 25. Red1 {[%clk 0:00:26.7]} 25... Kg8 {[%clk 0:00:18.3]}
26. Qe3 {[%clk 0:00:17.4]} 26... Rxc1 {[%clk 0:00:13.9]} 27. Rxc1 {[%clk
0:00:17]} 27... Bb5 {[%clk 0:00:14.5]} 28. Rc8+ {[%clk 0:00:14.5]} 28... Kh7
{[%clk 0:00:13.9]} 29. Rc5 {[%clk 0:00:14.1]} 29... Qb4 {[%clk 0:00:13]} 30. Qf4
{[%clk 0:00:12.6]} 30... Qe1+ {[%clk 0:00:09.5]} 31. Kg2 {[%clk 0:00:10.9]}
31... Bf1+ {[%clk 0:00:08.9]} 32. Kf3 {[%clk 0:00:05.8]} 32... Qe2# {[%clk
0:00:07.7]} 0-1

[Event "*** SCC Grand Prix: Titled Tuesday Blitz"]
[Site "Chess.com"]
[Date "2020.06.09"]
[Round "4"]
[White "vaishali2001"]
[Black "Jbd735"]
[Result "0-1"]
[WhiteElo "2629"]
[BlackElo "2467"]
[TimeControl "180+1"]
[EndTime "9:39:30 PDT"]
[Termination "Jbd735 won by resignation"]

1. d4 {[%clk 0:03:00.9]} 1... d5 {[%clk 0:02:59.6]} 2. c4 {[%clk 0:02:59.5]}
2... c6 {[%clk 0:02:59.3]} 3. Nc3 {[%clk 0:02:51.7]} 3... e6 {[%clk 0:02:58.6]}
4. e3 {[%clk 0:02:49.6]} 4... Nf6 {[%clk 0:02:54.8]} 5. Nf3 {[%clk 0:02:49.9]}
5... Nbd7 {[%clk 0:02:53.2]} 6. Qc2 {[%clk 0:02:47.4]} 6... Bd6 {[%clk
0:02:52.9]} 7. Bd3 {[%clk 0:02:46.1]} 7... O-O {[%clk 0:02:53.4]} 8. O-O {[%clk
0:02:44]} 8... dxc4 {[%clk 0:02:54]} 9. Bxc4 {[%clk 0:02:44.5]} 9... b5 {[%clk
0:02:54.5]} 10. Be2 {[%clk 0:02:41.9]} 10... Bb7 {[%clk 0:02:55]} 11. Rd1 {[%clk
0:02:22.4]} 11... Qb8 {[%clk 0:02:47.8]} 12. a4 {[%clk 0:02:12.3]} 12... b4
{[%clk 0:02:40.1]} 13. Ne4 {[%clk 0:02:11.6]} 13... Nxe4 {[%clk 0:02:39]} 14.
Qxe4 {[%clk 0:02:12.5]} 14... c5 {[%clk 0:02:38.8]} 15. Qh4 {[%clk 0:02:11.6]}
15... a5 {[%clk 0:02:14.1]} 16. b3 {[%clk 0:01:44.8]} 16... Bd5 {[%clk
0:01:42.5]} 17. Bb2 {[%clk 0:01:18.5]} 17... Bxb3 {[%clk 0:00:47.2]} 18. dxc5
{[%clk 0:01:16.3]} 18... Bxd1 {[%clk 0:00:47.1]} 19. Rxd1 {[%clk 0:01:16.1]}
19... Nxc5 {[%clk 0:00:47]} 20. Bxg7 {[%clk 0:00:51.4]} 20... Kxg7 {[%clk
0:00:36.5]} 21. Qg5+ {[%clk 0:00:51.5]} 21... Kh8 {[%clk 0:00:36.7]} 22. Qf6+
{[%clk 0:00:52.4]} 22... Kg8 {[%clk 0:00:36.7]} 23. Qg5+ {[%clk 0:00:35.7]}
23... Kh8 {[%clk 0:00:36.2]} 24. Qf6+ {[%clk 0:00:36.6]} 24... Kg8 {[%clk
0:00:36.7]} 25. Rd4 {[%clk 0:00:21.1]} 25... Rd8 {[%clk 0:00:32.3]} 26. Ng5
{[%clk 0:00:15.8]} 26... Qc7 {[%clk 0:00:12.4]} 27. Rh4 {[%clk 0:00:04.4]} 27...
Be5 {[%clk 0:00:07.9]} 28. Qh6 {[%clk 0:00:02.7]} 28... f6 {[%clk 0:00:06.6]}
29. Nxh7 {[%clk 0:00:02]} 29... Kf7 {[%clk 0:00:03.9]} 30. Rg4 {[%clk
0:00:01.8]} 30... f5 {[%clk 0:00:03.2]} 31. Qh5+ {[%clk 0:00:01.9]} 31... Ke7
{[%clk 0:00:03]} 32. Rg7+ {[%clk 0:00:02]} 32... Bxg7 {[%clk 0:00:02.6]} 0-1

[Event "*** SCC Grand Prix: Titled Tuesday Blitz"]
[Site "Chess.com"]
[Date "2020.06.09"]
[Round "4"]
[White "Shuvalov"]
[Black "vitnik2020"]
[Result "1-0"]
[WhiteElo "2454"]
[BlackElo "2295"]
[TimeControl "180+1"]
[EndTime "9:39:30 PDT"]
[Termination "Shuvalov won by resignation"]

1. Nf3 {[%clk 0:03:00.9]} 1... d5 {[%clk 0:02:59]} 2. c4 {[%clk 0:03:00.7]} 2...
e6 {[%clk 0:02:57.1]} 3. g3 {[%clk 0:03:00.6]} 3... dxc4 {[%clk 0:02:56.6]} 4.
Bg2 {[%clk 0:03:00.7]} 4... a6 {[%clk 0:02:49.8]} 5. a4 {[%clk 0:02:57.7]} 5...
Nc6 {[%clk 0:02:47.2]} 6. Qc2 {[%clk 0:02:44.6]} 6... e5 {[%clk 0:02:46.1]} 7.
Qxc4 {[%clk 0:02:44.4]} 7... Be6 {[%clk 0:02:45.1]} 8. Qc2 {[%clk 0:02:40.6]}
8... Nf6 {[%clk 0:02:29.1]} 9. d3 {[%clk 0:02:33.9]} 9... Bb4+ {[%clk
0:02:13.4]} 10. Bd2 {[%clk 0:02:28.5]} 10... O-O {[%clk 0:02:10.8]} 11. O-O
{[%clk 0:02:26.8]} 11... Bxd2 {[%clk 0:01:33.6]} 12. Nbxd2 {[%clk 0:02:18.8]}
12... Nd5 {[%clk 0:01:32]} 13. a5 {[%clk 0:02:12.7]} 13... Qe7 {[%clk
0:01:05.7]} 14. Rfc1 {[%clk 0:02:08.6]} 14... Qb4 {[%clk 0:00:56.4]} 15. Qc5
{[%clk 0:01:24.6]} 15... Qxc5 {[%clk 0:00:53.3]} 16. Rxc5 {[%clk 0:01:25.5]}
16... Rfd8 {[%clk 0:00:28.6]} 17. Rcc1 {[%clk 0:01:25]} 17... f6 {[%clk
0:00:27.8]} 18. Ne4 {[%clk 0:01:24.8]} 18... Rab8 {[%clk 0:00:23.1]} 19. Nc5
{[%clk 0:01:24.8]} 19... Bf7 {[%clk 0:00:22.1]} 20. Kf1 {[%clk 0:00:53.8]} 20...
Ndb4 {[%clk 0:00:21]} 21. Rc3 {[%clk 0:00:39.3]} 21... Kf8 {[%clk 0:00:20.2]}
22. Nd2 {[%clk 0:00:25]} 22... Bd5 {[%clk 0:00:18]} 23. Bxd5 {[%clk 0:00:19.5]}
23... Rxd5 {[%clk 0:00:17.4]} 24. Nde4 {[%clk 0:00:14.2]} 24... Ke7 {[%clk
0:00:16.3]} 25. Nd2 {[%clk 0:00:14.3]} 25... Nd4 {[%clk 0:00:12.9]} 26. e3
{[%clk 0:00:11.1]} 26... Nb5 {[%clk 0:00:11.8]} 27. Rc4 {[%clk 0:00:09.8]} 27...
Nxd3 {[%clk 0:00:11.3]} 28. Nxd3 {[%clk 0:00:09.6]} 28... Rxd3 {[%clk
0:00:11.1]} 29. Ke2 {[%clk 0:00:10.1]} 29... Rbd8 {[%clk 0:00:10.5]} 30. Ne4
{[%clk 0:00:10.1]} 30... Rb3 {[%clk 0:00:09.6]} 31. Rc2 {[%clk 0:00:07.1]} 31...
f5 {[%clk 0:00:09.2]} 32. Nc5 {[%clk 0:00:07.2]} 32... Nd6 {[%clk 0:00:09.1]}
33. Nxb3 {[%clk 0:00:07.1]} 33... Ne4 {[%clk 0:00:07.5]} 34. Rd1 {[%clk
0:00:05.8]} 1-0